fUSD/lending_fUSD_20250702
["ID","MTS","AMOUNT","RATE_DAILY","PERIOD"]
[369047679,1751445046244,-496.38620895,0.00016438,2]
[369047681,1751445046254,-490.0,0.00016438,2]
[369047683,1751445046262,-490.0,0.00016438,2]
[369047685,1751445046272,-490.0,0.00016438,2]
[369047687,1751445046282,-490.0,0.00016438,2]
[369047689,1751445046291,-627.29,0.00016438,2]
[369047691,1751445046300,-565.78,0.00016438,2]
[369047693,1751445046311,-947.26,0.00016438,2]
[369047695,1751445046320,-490.0,0.00016438,2]
[369047697,1751445046331,-490.0,0.00016438,2]
[369047699,1751445046344,-490.0,0.00016438,2]
[369047701,1751445046353,-1376.95,0.00016438,2]
[369047703,1751445046363,-14179.41,0.00016438,2]
[369047705,1751445046377,-490.0,0.00016438,2]
[369047708,1751445046387,-490.0,0.00016438,2]
[369047710,1751445046396,-490.0,0.00016438,2]
[369047711,1751445046405,-490.0,0.00016438,2]
[369047713,1751445046414,-889.84,0.00016438,2]
[369047716,1751445046424,-490.0,0.00016438,2]
[369047718,1751445046433,-490.0,0.00016438,2]
[369047720,1751445046442,-490.0,0.00016438,2]
[369047721,1751445046451,-1088.05,0.00016438,2]
[369047723,1751445046460,-192.72956703,0.00016438,2]
[369047725,1751445046470,-510.47088445,0.00016438,2]
[369047728,1751445046479,-944.68,0.00016438,2]
[369047729,1751445046488,-490.0,0.00016438,2]
[369047731,1751445046498,-490.0,0.00016438,2]
[369047734,1751445046507,-490.0,0.00016438,2]
[369047736,1751445046516,-490.0,0.00016438,2]
[369047738,1751445046529,-500.0,0.00016438,2]
[369047740,1751445046538,-460.22026281,0.00016438,2]
[369047742,1751445046547,-490.0,0.00016438,2]
[369047744,1751445046556,-490.0,0.00016438,2]
[369047746,1751445046565,-490.0,0.00016438,2]
[369047748,1751445046575,-490.0,0.00016438,2]
[369047750,1751445046587,-490.0,0.00016438,2]
[369047752,1751445046596,-490.0,0.00016438,2]
[369047754,1751445046605,-493.01444136,0.00016438,2]
[369047756,1751445046614,-1539.52,0.00016438,2]
[369047758,1751445046624,-490.0,0.00016438,2]
[369047760,1751445046634,-490.0,0.00016438,2]
[369047762,1751445046642,-490.0,0.00016438,2]
[369047764,1751445046652,-490.0,0.00016438,2]
[369047766,1751445046660,-609.91,0.00016438,2]
[369047768,1751445046669,-493.01847785,0.00016438,2]
[369047770,1751445046678,-490.0,0.00016438,2]
[369047772,1751445046687,-498.66,0.00016438,2]
[369047774,1751445046696,-490.0,0.00016438,2]
[369047775,1751445046705,-409.83476664,0.00016438,2]
[369047777,1751445046713,-490.0,0.00016438,2]
[369047779,1751445046722,-1542.4,0.00016438,2]
[369047781,1751445046731,-627.88,0.00016438,2]
[369047783,1751445046741,-681.4,0.00016438,2]
[369047785,1751445046750,-490.0,0.00016438,2]
[369047787,1751445046759,-490.0,0.00016438,2]
[369047790,1751445046769,-490.0,0.00016438,2]
[369047792,1751445046779,-490.0,0.00016438,2]
[369047793,1751445046788,-490.0,0.00016438,2]
[369047796,1751445046798,-648.5,0.00016438,2]
[369047798,1751445046807,-490.0,0.00016438,2]
[369047800,1751445046816,-1386.4,0.00016438,2]
[369047802,1751445046825,-490.0,0.00016438,2]
[369047804,1751445046835,-490.0,0.00016438,2]
[369047806,1751445046844,-587.06,0.00016438,2]
[369047807,1751445046854,-490.0,0.00016438,2]
[369047809,1751445046863,-689.17,0.00016438,2]
[369047810,1751445046871,-428.51245825,0.00016438,2]
[369047811,1751445046880,-595.51,0.00016438,2]
[369047812,1751445046889,-490.0,0.00016438,2]
[369047813,1751445046898,-490.0,0.00016438,2]
[369047814,1751445046907,-694.17,0.00016438,2]
[369047815,1751445046916,-505.04002218,0.00016438,2]
[369047816,1751445046925,-620.31,0.00016438,2]
[369047817,1751445046934,-490.0,0.00016438,2]
[369047818,1751445046943,-1173.26,0.00016438,2]
[369047819,1751445046952,-490.0,0.00016438,2]
[369047820,1751445046961,-490.0,0.00016438,2]
[369047821,1751445046970,-490.0,0.00016438,2]
[369047822,1751445046979,-490.0,0.00016438,2]
[369047823,1751445046988,-490.0,0.00016438,2]
[369047825,1751445046997,-490.0,0.00016438,2]
[369047827,1751445047007,-798.25,0.00016438,2]
[369047829,1751445047016,-490.0,0.00016438,2]
[369047830,1751445047026,-490.0,0.00016438,2]
[369047832,1751445047035,-1127.98,0.00016438,2]
[369047835,1751445047045,-530.81,0.00016438,2]
[369047837,1751445047054,-862.45,0.00016438,2]
[369047839,1751445047064,-490.0,0.00016438,2]
[369047840,1751445047073,-490.0,0.00016438,2]
[369047842,1751445047083,-490.0,0.00016438,2]
[369047844,1751445047092,-490.0,0.00016438,2]
[369047846,1751445047102,-490.0,0.00016438,2]
[369047848,1751445047111,-490.0,0.00016438,2]
[369047851,1751445047121,-490.0,0.00016438,2]
[369047853,1751445047130,-490.0,0.00016438,2]
[369047855,1751445047140,-490.0,0.00016438,2]
[369047857,1751445047150,-1384.15,0.00016438,2]
[369047858,1751445047159,-490.0,0.00016438,2]
[369047860,1751445047168,-150.0,0.00016438,2]
[369047862,1751445047178,-490.0,0.00016438,2]
[369047865,1751445047187,-490.0,0.00016438,2]
[369047866,1751445047196,-490.0,0.00016438,2]
[369047869,1751445047207,-490.0,0.00016438,2]
[369047871,1751445047216,-500.0,0.00016438,2]
[369047872,1751445047226,-490.0,0.00016438,2]
[369047874,1751445047235,-1663.52,0.00016438,2]
[369047876,1751445047244,-490.0,0.00016438,2]
[369047878,1751445047253,-150.0,0.00016438,2]
[369047880,1751445047263,-490.0,0.00016438,2]
[369047882,1751445047272,-150.0,0.00016438,2]
[369047885,1751445047282,-150.0,0.00016438,2]
[369047886,1751445047291,-490.0,0.00016438,2]
[369047888,1751445047300,-490.0,0.00016438,2]
[369047890,1751445047309,-511.17,0.00016438,2]
[369047892,1751445047319,-500.0,0.00016438,2]
[369047895,1751445047328,-490.0,0.00016438,2]
[369047896,1751445047339,-490.0,0.00016438,2]
[369047898,1751445047348,-2111.4,0.00016438,2]
[369047901,1751445047358,-490.0,0.00016438,2]
[369047902,1751445047373,-796.4,0.00016438,2]
[369047905,1751445047388,-490.0,0.00016438,2]
[369047907,1751445047398,-1767.66,0.00016438,2]
[369047909,1751445047407,-490.0,0.00016438,2]
[369047911,1751445047416,-490.0,0.00016438,2]
[369047913,1751445047426,-490.0,0.00016438,2]
[369047914,1751445047436,-1222.14,0.00016438,2]
[369047917,1751445047445,-156.50988848,0.00016438,2]
[369047919,1751445047454,-490.0,0.00016438,2]
[369047921,1751445047463,-5469.77,0.00016438,2]
[369047922,1751445047472,-490.0,0.00016438,2]
[369047925,1751445047482,-490.0,0.00016438,2]
[369047927,1751445047491,-490.0,0.00016438,2]
[369047928,1751445047500,-500.0,0.00016438,2]
[369047930,1751445047509,-1384.9,0.00016438,2]
[369047932,1751445047518,-609.06,0.00016438,2]
[369047934,1751445047527,-490.0,0.00016438,2]
[369047936,1751445047536,-490.0,0.00016438,2]
[369047938,1751445047546,-490.0,0.00016438,2]
[369047940,1751445047555,-490.0,0.00016438,2]
[369047942,1751445047564,-5747.48,0.00016438,2]
[369047944,1751445047573,-490.0,0.00016438,2]
[369047946,1751445047583,-1388.16,0.00016438,2]
[369047948,1751445047593,-1133.87,0.00016438,2]
[369047950,1751445047602,-490.0,0.00016438,2]
[369047952,1751445047611,-490.0,0.00016438,2]
[369047954,1751445047620,-490.0,0.00016438,2]
[369047956,1751445047629,-2072.26,0.00016438,2]
[369047958,1751445047638,-742.08,0.00016438,2]
[369047960,1751445047647,-490.0,0.00016438,2]
[369047962,1751445047657,-1546.09,0.00016438,2]
[369047964,1751445047666,-150.0,0.00016438,2]
[369047966,1751445047675,-490.0,0.00016438,2]
[369047968,1751445047684,-1981.03,0.00016438,2]
[369047970,1751445047693,-490.0,0.00016438,2]
[369047972,1751445047702,-1074.87,0.00016438,2]
[369047974,1751445047711,-490.0,0.00016438,2]
[369047976,1751445047720,-1003.72,0.00016438,2]
[369047978,1751445047729,-500.0,0.00016438,2]
[369047980,1751445047738,-490.0,0.00016438,2]
[369047982,1751445047748,-490.0,0.00016438,2]
[369047984,1751445047757,-490.0,0.00016438,2]
[369047986,1751445047766,-150.0,0.00016438,2]
[369047988,1751445047775,-490.0,0.00016438,2]
[369047990,1751445047785,-2660.49,0.00016438,2]
[369047992,1751445047794,-490.0,0.00016438,2]
[369047994,1751445047803,-490.0,0.00016438,2]
[369047996,1751445047813,-1350.03,0.00016438,2]
[369047998,1751445047822,-1278.65,0.00016438,2]
[369048000,1751445047831,-65083.26,0.00016438,2]
[369048002,1751445047840,-577.04213907,0.00016438,2]
[369048084,1751445048616,-52.94404629,0.00016438,2]
[369048086,1751445048626,-490.0,0.00016438,2]
[369048088,1751445048635,-490.0,0.00016438,2]
[369048090,1751445048644,-490.0,0.00016438,2]
[369048092,1751445048654,-490.0,0.00016438,2]
[369048094,1751445048663,-150.0,0.00016438,2]
[369048096,1751445048672,-490.0,0.00016438,2]
[369048098,1751445048681,-6432.4,0.00016438,2]
[369048100,1751445048691,-956.12,0.00016438,2]
[369048102,1751445048701,-490.0,0.00016438,2]
[369048104,1751445048710,-490.0,0.00016438,2]
[369048106,1751445048719,-561.47,0.00016438,2]
[369048108,1751445048729,-490.0,0.00016438,2]
[369048110,1751445048738,-1651.59,0.00016438,2]
[369048112,1751445048747,-1188.53,0.00016438,2]
[369048114,1751445048756,-490.0,0.00016438,2]
[369048116,1751445048765,-490.0,0.00016438,2]
[369048118,1751445048775,-558.82,0.00016438,2]
[369048120,1751445048785,-502.19917477,0.00016438,2]
[369048122,1751445048795,-490.0,0.00016438,2]
[369048124,1751445048804,-6470.99,0.00016438,2]
[369048126,1751445048814,-490.0,0.00016438,2]
[369048128,1751445048823,-18934.62,0.00016438,2]
[369048130,1751445048833,-490.0,0.00016438,2]
[369048132,1751445048843,-1168.44,0.00016438,2]
[369048134,1751445048853,-490.0,0.00016438,2]
[369048136,1751445048863,-490.0,0.00016438,2]
[369048138,1751445048872,-490.0,0.00016438,2]
[369048140,1751445048882,-1129.86,0.00016438,2]
[369048142,1751445048892,-490.0,0.00016438,2]
[369048144,1751445048901,-1177.47,0.00016438,2]
[369048147,1751445048911,-490.0,0.00016438,2]
[369048149,1751445048921,-490.0,0.00016438,2]
[369048151,1751445048930,-1124.81,0.00016438,2]
[369048153,1751445048939,-512.88,0.00016438,2]
[369048155,1751445048949,-150.965429,0.00016438,2]
[369048157,1751445048959,-490.0,0.00016438,2]
[369048159,1751445048968,-7529.09,0.00016438,2]
[369048161,1751445048978,-490.0,0.00016438,2]
[369048162,1751445048987,-490.0,0.00016438,2]
[369048164,1751445048997,-490.0,0.00016438,2]
[369048167,1751445049007,-490.0,0.00016438,2]
[369048168,1751445049017,-650.74,0.00016438,2]
[369048170,1751445049027,-490.0,0.00016438,2]
[369048173,1751445049037,-490.0,0.00016438,2]
[369048175,1751445049046,-490.0,0.00016438,2]
[369048176,1751445049056,-490.0,0.00016438,2]
[369048178,1751445049067,-490.0,0.00016438,2]
[369048180,1751445049076,-490.0,0.00016438,2]
[369048183,1751445049087,-490.0,0.00016438,2]
[369048185,1751445049097,-490.0,0.00016438,2]
[369048187,1751445049106,-2535.73,0.00016438,2]
[369048188,1751445049116,-646.36,0.00016438,2]
[369048190,1751445049126,-3460.46,0.00016438,2]
[369048192,1751445049135,-16558.85,0.00016438,2]
[369048194,1751445049146,-490.0,0.00016438,2]
[369048196,1751445049155,-1378.23,0.00016438,2]
[369048199,1751445049166,-495.92,0.00016438,2]
[369048200,1751445049175,-519.48,0.00016438,2]
[369048203,1751445049185,-490.0,0.00016438,2]
[369048204,1751445049195,-490.0,0.00016438,2]
[369048206,1751445049204,-490.0,0.00016438,2]
[369048208,1751445049213,-566.4561669,0.00016438,2]
[369048210,1751445049223,-1566.09,0.00016438,2]
[369048212,1751445049233,-573.21,0.00016438,2]
[369048214,1751445049243,-490.0,0.00016438,2]
[369048216,1751445049252,-1091.9,0.00016438,2]
[369048218,1751445049262,-771.75,0.00016438,2]
[369048220,1751445049272,-490.0,0.00016438,2]
[369048222,1751445049281,-2015.3,0.00016438,2]
[369048224,1751445049290,-492.43858548,0.00016438,2]
[369048226,1751445049300,-490.0,0.00016438,2]
[369048228,1751445049311,-1978.08,0.00016438,2]
[369048230,1751445049320,-1122.12,0.00016438,2]
[369048232,1751445049329,-849.19,0.00016438,2]
[369048234,1751445049340,-791.39,0.00016438,2]
[369048236,1751445049349,-490.0,0.00016438,2]
[369048238,1751445049358,-968.58,0.00016438,2]
[369048240,1751445049369,-971.6,0.00016438,2]
[369048242,1751445049380,-2553.74,0.00016438,2]
[369048244,1751445049389,-883.17,0.00016438,2]
[369048246,1751445049398,-490.0,0.00016438,2]
[369048248,1751445049407,-501.61596856,0.00016438,2]
[369048250,1751445049416,-1375.05,0.00016438,2]
[369048252,1751445049425,-429.86587943,0.00016438,2]
[369048254,1751445049435,-490.0,0.00016438,2]
[369048256,1751445049445,-490.0,0.00016438,2]
[369048258,1751445049455,-1526.97,0.00016438,2]
[369048260,1751445049464,-604.18,0.00016438,2]
[369048262,1751445049474,-490.0,0.00016438,2]
[369048264,1751445049483,-977.45,0.00016438,2]
[369048266,1751445049493,-2912.61,0.00016438,2]
[369048268,1751445049502,-490.0,0.00016438,2]
[369048270,1751445049511,-490.0,0.00016438,2]
[369048272,1751445049520,-490.0,0.00016438,2]
[369048274,1751445049530,-490.0,0.00016438,2]
[369048276,1751445049539,-500.0,0.00016438,2]
[369048278,1751445049549,-2998.09,0.00016438,2]
[369048280,1751445049558,-463.78594834,0.00016438,2]
[369048282,1751445049567,-490.0,0.00016438,2]
[369048284,1751445049577,-490.0,0.00016438,2]
[369048286,1751445049586,-801.57,0.00016438,2]
[369048288,1751445049597,-490.0,0.00016438,2]
[369048290,1751445049606,-1093.01,0.00016438,2]
[369048292,1751445049615,-2671.66,0.00016438,2]
[369048294,1751445049624,-490.0,0.00016438,2]
[369048296,1751445049633,-490.0,0.00016438,2]
[369048298,1751445049642,-1198.55,0.00016438,2]
[369048300,1751445049651,-490.0,0.00016438,2]
[369048302,1751445049661,-255.80387034,0.00016438,2]
[369048304,1751445049671,-1883.59,0.00016438,2]
[369048306,1751445049680,-490.0,0.00016438,2]
[369048308,1751445049689,-989.43,0.00016438,2]
[369048310,1751445049698,-490.0,0.00016438,2]
[369048312,1751445049708,-490.0,0.00016438,2]
[369048314,1751445049718,-490.0,0.00016438,2]
[369048316,1751445049728,-490.0,0.00016438,2]
[369048318,1751445049737,-490.0,0.00016438,2]
[369048320,1751445049747,-1793.36,0.00016438,2]
[369048322,1751445049756,-882.93,0.00016438,2]
[369048324,1751445049765,-840.96,0.00016438,2]
[369048326,1751445049774,-490.0,0.00016438,2]
[369048328,1751445049783,-490.0,0.00016438,2]
[369048330,1751445049792,-2736.9,0.00016438,2]
[369048332,1751445049801,-493.17369334,0.00016438,2]
[369048334,1751445049810,-150.0,0.00016438,2]
[369048336,1751445049819,-490.0,0.00016438,2]
[369048338,1751445049830,-490.0,0.00016438,2]
[369048341,1751445049841,-490.0,0.00016438,2]
[369048343,1751445049850,-270.17396835,0.00016438,2]
[369048344,1751445049859,-490.0,0.00016438,2]
[369048346,1751445049868,-490.0,0.00016438,2]
[369048349,1751445049878,-1428.11,0.00016438,2]
[369048351,1751445049887,-2070.32,0.00016438,2]
[369048353,1751445049896,-2885.8,0.00016438,2]
[369048354,1751445049905,-490.0,0.00016438,2]
[369048356,1751445049915,-495.73378791,0.00016438,2]
[369048358,1751445049925,-633.50839659,0.00016438,2]
[369048361,1751445049934,-490.0,0.00016438,2]
[369048363,1751445049944,-490.0,0.00016438,2]
[369048364,1751445049953,-490.0,0.00016438,2]
[369048365,1751445049962,-493.13113689,0.00016438,2]
[369048366,1751445049970,-490.93557014,0.00016438,2]
[369048367,1751445049979,-150.0,0.00016438,2]
[369048368,1751445049988,-1427.37,0.00016438,2]
[369048369,1751445049997,-912.44,0.00016438,2]
[369048370,1751445050006,-490.0,0.00016438,2]
[369048371,1751445050015,-490.0,0.00016438,2]
[369048372,1751445050024,-500.0,0.00016438,2]
[369048373,1751445050033,-490.0,0.00016438,2]
[369048374,1751445050042,-490.0,0.00016438,2]
[369048375,1751445050051,-2222.88,0.00016438,2]
[369048376,1751445050060,-545.00133028,0.00016438,2]
[369048377,1751445050069,-500.0,0.00016438,2]
[369048378,1751445050079,-500.0,0.00016438,2]
[369048380,1751445050089,-500.0,0.00016438,2]
[369048382,1751445050098,-492.4811934,0.00016438,2]
[369048384,1751445050107,-490.0,0.00016438,2]
[369048386,1751445050116,-490.0,0.00016438,2]
[369048388,1751445050126,-500.0,0.00016438,2]
[369048390,1751445050135,-630.16080024,0.00016438,2]
[369048392,1751445050144,-1307.51,0.00016438,2]
[369048394,1751445050153,-785.0,0.00016438,2]
[369048396,1751445050163,-490.0,0.00016438,2]
[369048398,1751445050172,-490.0,0.00016438,2]
[369048400,1751445050181,-490.0,0.00016438,2]
[369048402,1751445050190,-1756.89,0.00016438,2]
[369048404,1751445050200,-490.0,0.00016438,2]
[369048406,1751445050209,-1517.56,0.00016438,2]
[369048408,1751445050218,-491.43727134,0.00016438,2]
[369048410,1751445050228,-490.0,0.00016438,2]
[369048412,1751445050237,-490.0,0.00016438,2]
[369048414,1751445050246,-490.0,0.00016438,2]
[369048416,1751445050255,-2807.36,0.00016438,2]
[369048418,1751445050265,-2827.05,0.00016438,2]
[369048420,1751445050274,-490.0,0.00016438,2]
[369048422,1751445050283,-490.0,0.00016438,2]
[369048424,1751445050293,-500.0,0.00016438,2]
[369048426,1751445050302,-1157.48,0.00016438,2]
[369048428,1751445050311,-311.14814634,0.00016438,2]
[369048430,1751445050321,-492.81390287,0.00016438,2]
[369048451,1751445050330,-7883.62,0.00016438,2]
[369048454,1751445050526,-490.0,0.00016438,2]
[369048455,1751445050537,-1581.0,0.00016438,2]
[369048457,1751445050547,-1529.7,0.00016438,2]
[369048460,1751445050557,-2007.7,0.00016438,2]
[369048461,1751445050566,-490.0,0.00016438,2]
[369048463,1751445050575,-490.0,0.00016438,2]
[369048465,1751445050586,-490.0,0.00016438,2]
[369048467,1751445050595,-704.91,0.00016438,2]
[369048469,1751445050604,-825.74,0.00016438,2]
[369048471,1751445050614,-494.6558282,0.00016438,2]
[369048473,1751445050623,-586.31,0.00016438,2]
[369048475,1751445050633,-490.0,0.00016438,2]
[369048477,1751445050642,-490.0,0.00016438,2]
[369048479,1751445050651,-1419.45,0.00016438,2]
[369048481,1751445050660,-1184.74,0.00016438,2]
[369048483,1751445050670,-152.07146352,0.00016438,2]
[369048485,1751445050679,-490.0,0.00016438,2]
[369048487,1751445050689,-490.0,0.00016438,2]
[369048489,1751445050698,-150.0,0.00016438,2]
[369048491,1751445050707,-201.89710221,0.00016438,2]
[369048493,1751445050717,-5704.93,0.00016438,2]
[369048495,1751445050726,-1893.67,0.00016438,2]
[369048497,1751445050735,-1356.55,0.00016438,2]
[369048499,1751445050745,-490.0,0.00016438,2]
[369048501,1751445050754,-150.0,0.00016438,2]
[369048503,1751445050763,-490.0,0.00016438,2]
[369048505,1751445050772,-225.53753045,0.00016438,2]
[369048507,1751445050781,-652.63,0.00016438,2]
[369048509,1751445050791,-3923.86,0.00016438,2]
[369048511,1751445050801,-1864.99,0.00016438,2]
[369048513,1751445050812,-596.41962714,0.00016438,2]
[369048515,1751445050821,-830.77,0.00016438,2]
[369048517,1751445050830,-490.0,0.00016438,2]
[369048519,1751445050840,-830.77,0.00016438,2]
[369048521,1751445050849,-804.53,0.00016438,2]
[369048523,1751445050858,-830.77,0.00016438,2]
[369048525,1751445050868,-490.0,0.00016438,2]
[369048527,1751445050878,-497.25883159,0.00016438,2]
[369048529,1751445050887,-490.0,0.00016438,2]
[369048531,1751445050896,-490.0,0.00016438,2]
[369048533,1751445050905,-490.0,0.00016438,2]
[369048535,1751445050915,-490.0,0.00016438,2]
[369048537,1751445050924,-490.0,0.00016438,2]
[369048539,1751445050934,-150.0,0.00016438,2]
[369048541,1751445050943,-490.0,0.00016438,2]
[369048543,1751445050952,-150.0,0.00016438,2]
[369048545,1751445050961,-490.0,0.00016438,2]
[369048547,1751445050970,-1408.82,0.00016438,2]
[369048549,1751445050980,-689.0,0.00016438,2]
[369048551,1751445050989,-1200.82,0.00016438,2]
[369048553,1751445050998,-490.0,0.00016438,2]
[369048555,1751445051008,-490.0,0.00016438,2]
[369048557,1751445051017,-490.0,0.00016438,2]
[369048559,1751445051026,-1990.82,0.00016438,2]
[369048561,1751445051036,-3348.93,0.00016438,2]
[369048563,1751445051046,-1063.5,0.00016438,2]
[369048565,1751445051056,-490.0,0.00016438,2]
[369048567,1751445051065,-832.72,0.00016438,2]
[369048569,1751445051074,-2807.25,0.00016438,2]
[369048571,1751445051084,-1403.85,0.00016438,2]
[369048573,1751445051094,-490.0,0.00016438,2]
[369048575,1751445051103,-514.24,0.00016438,2]
[369048577,1751445051113,-490.0,0.00016438,2]
[369048579,1751445051123,-490.0,0.00016438,2]
[369048581,1751445051132,-490.0,0.00016438,2]
[369048583,1751445051142,-1439.13,0.00016438,2]
[369048585,1751445051151,-1682.23,0.00016438,2]
[369048587,1751445051160,-2365.59,0.00016438,2]
[369048589,1751445051170,-1004.56,0.00016438,2]
[369048591,1751445051179,-490.0,0.00016438,2]
[369048593,1751445051188,-490.0,0.00016438,2]
[369048595,1751445051198,-831.24,0.00016438,2]
[369048597,1751445051207,-1094.08,0.00016438,2]
[369048599,1751445051216,-490.0,0.00016438,2]
[369048601,1751445051226,-2375.37,0.00016438,2]
[369048603,1751445051236,-2625.54,0.00016438,2]
[369048605,1751445051245,-490.0,0.00016438,2]
[369048607,1751445051254,-878.16,0.00016438,2]
[369048610,1751445051264,-490.0,0.00016438,2]
[369048611,1751445051273,-490.0,0.00016438,2]
[369048613,1751445051282,-748.99,0.00016438,2]
[369048615,1751445051291,-490.0,0.00016438,2]
[369048617,1751445051301,-1487.72,0.00016438,2]
[369048619,1751445051310,-1438.65,0.00016438,2]
[369048622,1751445051320,-490.0,0.00016438,2]
[369048623,1751445051329,-490.0,0.00016438,2]
[369048625,1751445051340,-490.0,0.00016438,2]
[369048628,1751445051349,-490.0,0.00016438,2]
[369048629,1751445051359,-490.0,0.00016438,2]
[369048631,1751445051368,-490.0,0.00016438,2]
[369048633,1751445051380,-1591.15,0.00016438,2]
[369048635,1751445051389,-1022.62,0.00016438,2]
[369048637,1751445051399,-1217.98,0.00016438,2]
[369048639,1751445051408,-490.0,0.00016438,2]
[369048641,1751445051418,-1280.55,0.00016438,2]
[369048643,1751445051427,-702.25,0.00016438,2]
[369048645,1751445051437,-490.0,0.00016438,2]
[369048648,1751445051447,-550.9,0.00016438,2]
[369048650,1751445051457,-490.0,0.00016438,2]
[369048651,1751445051465,-1338.38,0.00016438,2]
[369048653,1751445051475,-490.0,0.00016438,2]
[369048656,1751445051484,-868.06,0.00016438,2]
[369048658,1751445051494,-490.0,0.00016438,2]
[369048659,1751445051503,-4251.24,0.00016438,2]
[369048661,1751445051512,-1103.06,0.00016438,2]
[369048663,1751445051522,-4041.74,0.00016438,2]
[369048665,1751445051531,-5605.97,0.00016438,2]
[369048667,1751445051540,-1900.96,0.00016438,2]
[369048669,1751445051549,-1500.0,0.00016438,2]
[369048671,1751445051559,-3123.04,0.00016438,2]
[369048673,1751445051568,-490.0,0.00016438,2]
[369048675,1751445051578,-490.0,0.00016438,2]
[369048677,1751445051587,-490.0,0.00016438,2]
[369048679,1751445051597,-3030.68,0.00016438,2]
[369048681,1751445051606,-490.0,0.00016438,2]
[369048683,1751445051615,-490.0,0.00016438,2]
[369048685,1751445051624,-2842.36,0.00016438,2]
[369048687,1751445051633,-490.0,0.00016438,2]
[369048689,1751445051644,-2001.06,0.00016438,2]
[369048691,1751445051653,-490.0,0.00016438,2]
[369048693,1751445051662,-490.0,0.00016438,2]
[369048695,1751445051671,-490.0,0.00016438,2]
[369048697,1751445051680,-342.64854148,0.00016438,2]
[369048700,1751445051700,-147.35145852,0.00016438,2]
[369048702,1751445051709,-490.0,0.00016438,2]
[369048704,1751445051718,-1605.48561582,0.00016438,2]
[369048713,1751445051790,-615.90703536,0.00016438,2]
[369048715,1751445051802,-6079.44734882,0.00016438,2]
[369048717,1751445051811,-1214.03,0.00016438,2]
[369048719,1751445051821,-490.0,0.00016438,2]
[369048721,1751445051830,-490.0,0.00016438,2]
[369048723,1751445051840,-490.0,0.00016438,2]
[369048725,1751445051849,-1354.43,0.00016438,2]
[369048727,1751445051858,-490.0,0.00016438,2]
[369048729,1751445051867,-913.4,0.00016438,2]
[369048731,1751445051877,-490.0,0.00016438,2]
[369048733,1751445051885,-490.0,0.00016438,2]
[369048735,1751445051894,-490.0,0.00016438,2]
[369048737,1751445051903,-490.0,0.00016438,2]
[369048739,1751445051912,-1192.11,0.00016438,2]
[369048741,1751445051921,-505.41637345,0.00016438,2]
[369048743,1751445051931,-998.72,0.00016438,2]
[369048745,1751445051940,-490.0,0.00016438,2]
[369048747,1751445051949,-490.0,0.00016438,2]
[369048749,1751445051958,-490.0,0.00016438,2]
[369048751,1751445051968,-490.0,0.00016438,2]
[369048753,1751445051977,-490.0,0.00016438,2]
[369048755,1751445051987,-4729.63,0.00016438,2]